Cogmind - Beta 10.2 @@@ ROGUE MODE // 2020.12.13 @ 23:41:23 Player: Runia Result: Destroyed by Y-54 Guardian with Flak Gun Performance ------------- Evolutions (4) 2000 Regions Visited (11) 2200 Robots Destroyed (121) 605 Value Destroyed (4710) 4710 Prototype IDs (5) 100 Alien Tech Used (0) 0 Bonus (3018) 3018 TOTAL SCORE: 12633 Bonus ------- High Alert Combat Kills 322 Follower Combat Kills 1241 Entered Garrisons 400 Used RIF Installer 1000 A7 Reached Mainframe 300 Friendly Fire -245 Cogmind --------- Core Integrity 0/850 Matter 59/300 Energy 100/100 System Corruption 5% Temperature Cool (15) Movement Core (1600) Ox31 Location -6/Hub_04(d) Parts ------- > --- POWER (1) -------- (None) > --- PROPULSION (3) --- (None) > --- UTILITY (9) ------ High-capacity Storage Unit High-capacity Storage Unit High-capacity Storage Unit Improved Melee Analysis Suite Relay Coupler [Duelist] (16) > --- WEAPON (2) ------- (None) > --- INVENTORY (28) --- Improved Deuterium Engine Improved Deuterium Engine Cooling System Advanced Sensor Array Long-range Terrain Scanner Long-range Terrain Scanner Advanced Terrain Scan Processor Improved Transmission Jammer Improved Propulsion Shielding Hardened Light Armor Plating Improved Light Armor Plating Improved Medium Armor Plating Improved Medium Armor Plating Centrium Medium Armor Plating EM Shield Relay Coupler [NC] (34) Relay Coupler [Swarmer] (38) Relay Coupler [Hunter] (18) Ion Cannon Ion Cannon Improved KE Penetrator Improved Datajack Improved Datajack Improved Datajack Remote Datajack Remote Datajack Katana Phasing Sabre Peak State ------------ > --- POWER ------------ Quantum Reactor > --- PROPULSION ------- Advanced Treads Advanced Treads Medium Treads > --- UTILITY ---------- High-capacity Storage Unit High-capacity Storage Unit High-capacity Storage Unit High-capacity Storage Unit Improved Melee Analysis Suite Force Field Relay Coupler [Brawler] Relay Coupler [Duelist] Relay Coupler [Hunter] > --- WEAPON ----------- Remote Datajack Phasing Sabre > --- INVENTORY -------- Improved Deuterium Engine Improved Deuterium Engine Reinforced Deuterium Engine Medium Treads Medium Treads Compact Wheel Cooling System Advanced Sensor Array Long-range Terrain Scanner Long-range Terrain Scanner Advanced Terrain Scan Processor Improved Melee Analysis Suite Improved Transmission Jammer Improved Propulsion Shielding Hardened Light Armor Plating Improved Light Armor Plating Centrium Medium Armor Plating Centrium Medium Armor Plating EM Shield Relay Coupler [NC] Relay Coupler [NC] Relay Coupler [NC] Relay Coupler [Swarmer] Relay Coupler [Hunter] Ion Cannon Ion Cannon Heavy Assault Rifle Improved KE Penetrator Improved Grenade Launcher Improved Datajack Improved Datajack Improved Datajack Remote Datajack Katana Phasing Sabre [Rating: 66] Favorites ----------- Power Light Antimatter Reactor Engine Light Deuterium Engine Power Core Light Nuclear Core Reactor Light Antimatter Reactor Propulsion Advanced Treads Treads Advanced Treads Leg Aluminum Leg Wheel Wheel Utility High-capacity Storage Unit Device Improved Transmission Jammer Storage High-capacity Storage Unit Processor Improved Melee Analysis Suite Hackware Relay Coupler [Hunter] Protection Propulsion Shielding Weapon Katana Energy Gun EM Shotgun Energy Cannon Improved EM Pulse Cannon Ballistic Gun Heavy Assault Rifle Launcher Improved Grenade Launcher Special Weapon Remote Datajack Slashing Weapon Katana Special Melee Weapon Improved Datajack Build | -11 -10 -9 -8 -8 -7 -7 -6 -6 -6 -6 -6 ------- Run | Scr Mat Mat Mat Gar Fac Gar Fac Ext Cet Arc Hub Slots Evolved 8 | . . 2 2 . 2 . 2 . . . . Power . | . . . . . . . . . . . . Propulsion 1 | . . . . . 1 . . . . . . Utility 7 | . . 2 2 . 1 . 2 . . . . Weapon . | . . . . . . . . . . . . Parts Attached 158 | 2 6 16 34 10 11 11 19 13 17 4 15 Power 15 | . 1 3 3 1 1 1 1 . 2 . 2 Engine 10 | . 1 3 1 1 1 1 . . 1 . 1 Core 2 | . . . 2 . . . . . . . . Reactor 3 | . . . . . . . 1 . 1 . 1 Propulsion 27 | 2 . 3 7 . 3 . 3 . 4 1 4 Treads 16 | 1 . 2 2 . 1 . 3 . 3 . 4 Leg . | . . . . . . . . . . . . Wheel 11 | 1 . 1 5 . 2 . . . 1 1 . Hover . | . . . . . . . . . . . . Flight . | . . . . . . . . . . . . Utility 49 | . 3 3 10 5 5 4 7 3 4 1 4 Device 12 | . . . 4 1 2 . 2 1 2 . . Storage 5 | . 3 1 . 1 . . . . . . . Processor 4 | . . . 1 . 1 . . 1 . . 1 Hackware 16 | . . . 2 . 2 4 3 1 2 1 1 Protection 12 | . . 2 3 3 . . 2 . . . 2 Artifact . | . . . . . . . . . . . . Weapon 67 | . 2 7 14 4 2 6 8 10 7 2 5 Energy Gun 7 | . 2 3 . 2 . . . . . . . Energy Cannon 14 | . . 1 8 . . 1 1 1 1 . 1 Ballistic Gun 10 | . . 2 3 1 . . 1 1 1 . 1 Ballistic Cannon . | . . . . . . . . . . . . Launcher 10 | . . . 2 1 . 2 1 2 1 . 1 Special Weapon 6 | . . . . . . . 3 . 1 1 1 Impact Weapon . | . . . . . . . . . . . . Slashing Weapon 12 | . . 1 1 . 1 . 2 3 2 1 1 Piercing Weapon . | . . . . . . . . . . . . Special Melee Weapon 8 | . . . . . 1 3 . 3 1 . . Unidentified Prototypes 1 | . . . . . . . . . . . 1 Parts Lost 42 | . . 6 12 3 . . 3 . 3 . 15 Power 6 | . . 1 2 1 . . . . . . 2 Propulsion 8 | . . . 1 . . . 1 . 2 . 4 Utility 13 | . . 1 2 1 . . 2 . 1 . 6 Weapon 15 | . . 4 7 1 . . . . . . 3 Highest Loss Streak 14 | . . 2 2 2 . . 2 . 3 . 14 Average Slot Usage (%) 97 | . 97 99 99 98 93 91 90 99 98 100 87 Engine 4 | . 14 11 3 2 7 6 4 . . . 1 Core 1 | . . . 4 5 . . . . . . . Reactor 1 | . . . . . . . 1 6 4 6 4 Treads 11 | . 14 11 9 9 7 7 6 20 19 17 9 Wheel 6 | . 14 11 9 9 8 7 5 . . 2 4 Device 4 | . . . 8 3 9 . 3 6 7 . . Storage 28 | . 26 33 27 35 30 30 26 26 26 26 25 Processor 4 | . . . 9 . 6 . . 5 6 6 5 Hackware 9 | . . . . . 4 22 23 19 17 25 20 Protection 5 | . . 11 9 13 . . 2 . . . 3 Energy Gun 3 | . 28 13 . 5 . . . . . . . Energy Cannon 4 | . . 2 11 3 . . . . 4 . 2 Ballistic Gun 3 | . . 5 5 9 3 . . . 5 . 3 Slashing Weapon 2 | . . . . . 3 7 5 5 1 6 1 Special Melee Weapon 1 | . . . . . 6 6 1 5 . 1 . Naked Turns . | . . . . . . . . . . . . Heaviest Build 165 | 9 75 113 122 151 151 151 152 153 165 155 164 Greatest Support 84 | 16 16 16 16 20 28 28 72 72 84 84 56 Greatest Overweight (x) 49 | . 4 11 11 15 7 5 5 2 9 9 49 Average Overweight (x) 5 | . 1 7 9 13 5 4 4 1 2 4 9 Largest Inventory Capacity 36 | 6 20 28 28 36 36 36 36 36 36 36 36 Average Capacity 31 | 6 9 27 28 35 36 36 36 36 36 36 35 Most Carried 36 | 6 14 28 28 29 35 36 36 36 36 32 35 Average Carried 29 | 5 8 26 26 26 31 35 35 32 35 32 31 Final Capacity 36 | 6 20 28 28 36 36 36 36 36 36 36 28 Final Carried 36 | 4 14 25 28 29 35 36 32 36 32 32 28 Class Distribution -------------------- 50% | Hauler-Mutant 47% | Bothacker-Mutant Dominant Class ---------------- Mutant | -10/Materials Hauler-Mutant | -9/Materials Hauler-Mutant | -8/Materials Hauler-Mutant | -8/Garrison Bothacker-Mutant | -7/Factory Bothacker-Mutant | -7/Garrison Bothacker-Mutant | -6/Factory Bothacker-Mutant | -6/Extension Bothacker-Mutant | -6/Cetus Bothacker-Mutant | -6/Archives Bothacker-Mutant | -6/Hub_04(d) Resources | -11 -10 -9 -8 -8 -7 -7 -6 -6 -6 -6 -6 ----------- Run | Scr Mat Mat Mat Gar Fac Gar Fac Ext Cet Arc Hub Matter Collected 2450 | 200 14 272 657 118 . 341 256 374 120 . 98 Remotely . | . . . . . . . . . . . . Salvage Created 4923 | . 73 956 1893 245 151 477 385 549 70 . 124 Parts 275 | . 3 62 116 16 11 18 12 30 1 . 6 Haulers Intercepted 4 | . 1 1 2 . . . . . . . . Recyclers Shooed 5 | . 3 . 2 . . . . . . . . Parts Field Recycled . | . . . . . . . . . . . . Retrieved Matter . | . . . . . . . . . . . . Parts Self-Destructed . | . . . . . . . . . . . . Prevented . | . . . . . . . . . . . . Kills | -11 -10 -9 -8 -8 -7 -7 -6 -6 -6 -6 -6 ------- Run | Scr Mat Mat Mat Gar Fac Gar Fac Ext Cet Arc Hub Combat Hostiles Destroyed 91 | . . 22 30 6 2 11 9 6 4 . 1 Melee 17 | . . . . . 2 5 5 5 . . . Guns 21 | . . 13 6 1 . . . 1 . . . Cannons 28 | . . 6 18 2 . . 1 . . . 1 AOE 20 | . . 1 3 3 . 6 3 . 4 . . Classes Destroyed 15 | . 2 5 3 2 . 1 2 . . . . Worker 7 | . . 1 5 . . . . . . . 1 Builder 2 | . . . 1 . . . . . . . 1 Tunneler 1 | . . . 1 . . . . . . . . Hauler 4 | . 1 1 2 . . . . . . . . Recycler 4 | . . . 3 . . . . 1 . . . Operator 4 | . . 1 1 . . . . 2 . . . Drone 1 | . . . . 1 . . . . . . . Watcher 8 | . 1 2 4 . 1 . . . . . . Swarmer 29 | . . 7 10 . . 7 3 . 2 . . Grunt 36 | . . 12 13 2 . 2 4 2 1 . . Brawler 1 | . . . . . . . 1 . . . . Duelist 2 | . . . . . . 1 . . 1 . . Sentry 17 | . . 3 7 2 1 2 . 1 . . 1 Hunter 2 | . . . . 1 1 . . . . . . Programmer 2 | . . . . . . . 1 1 . . . Thug 1 | . . . . . . . . 1 . . . Butcher 1 | . . . . . . . . 1 . . . Best Kill Streak 7 | . 1 5 7 2 1 4 3 2 4 . 1 Combat Bots Only 5 | . . 4 5 2 1 4 3 2 4 . 1 Max Kills in Single Turn 3 | . 1 1 3 2 1 3 1 1 2 . 1 Gunslinging . | . . . . . . . . . . . . Exploded 3 | . . 1 3 2 . 3 1 . 2 . . Melee 1 | . . . . . 1 1 1 1 . . . Uniques/NPCs Destroyed . | . . . . . . . . . . . . Combat | -11 -10 -9 -8 -8 -7 -7 -6 -6 -6 -6 -6 -------- Run | Scr Mat Mat Mat Gar Fac Gar Fac Ext Cet Arc Hub Damage Taken 8379 | . 40 1146 1962 554 55 505 472 444 318 246 2637 Core 1518 | . . 186 351 74 . 56 87 48 42 23 651 Absorbed by Shields 210 | . . . . 7 . . . 57 146 . . Core Remaining (%) 73 | 100 100 53 . 22 . 92 . . . . . Volleys Fired 275 | . 6 70 112 18 . 7 30 9 11 . 12 Largest 2 | . 2 2 2 2 . 1 2 2 2 . 2 Hottest 138 | . 90 90 138 94 . 60 83 83 83 . 83 Shots Fired 451 | . 12 136 177 31 . 7 37 11 18 . 22 Gun 256 | . 12 113 85 19 . . 7 3 7 . 10 Cannon 149 | . . 23 90 8 . 3 7 2 7 . 9 Launcher 23 | . . . 2 4 . 4 3 6 3 . 1 Special 23 | . . . . . . . 20 . 1 . 2 Kinetic 169 | . . 43 85 14 . . 7 3 7 . 10 Thermal 81 | . . 23 30 . . 3 7 2 7 . 9 Explosive 23 | . . . 2 4 . 4 3 6 3 . 1 Electromagnetic 155 | . 12 70 60 13 . . . . . . . Robot Hit Streak 20 | . 12 19 19 20 . 18 7 3 10 . 16 Robot Miss Streak 4 | . 2 4 4 1 . . 1 2 2 . 1 Penetration Max 1 | . . . . 1 . . . . . . . Secondary Targets 2 | . . 2 . . . . . . . . . Max Gunslinging Chain 1 | . . 1 . . . . . . . . . Shots Hit Robots 439 | . 10 107 116 19 9 38 40 63 15 4 18 Core Hits 196 | . 5 49 59 23 3 16 10 14 11 . 6 Critical Hits 5 | . . 1 2 . . 1 . . . . 1 Critical Kills 3 | . . 1 . . . 1 . . . . 1 Critical Parts Destroyed 2 | . . . 2 . . . . . . . . Melee Attacks 152 | . . 1 1 . 9 44 15 62 6 13 1 Impact . | . . . . . . . . . . . . Slashing 85 | . . 1 1 . 7 25 15 20 6 9 1 Piercing . | . . . . . . . . . . . . Sneak Attacks 84 | . . . . . 6 17 12 45 . 4 . Combat Hostiles 24 | . . . . . 6 6 12 . . . . Follow-up Attacks . | . . . . . . . . . . . . Damage Inflicted 12194 | . 213 1633 2650 1254 607 1881 1584 1277 759 . 336 Guns 2513 | . 173 1127 728 161 . . 69 33 79 . 143 Cannons 2758 | . . 385 1779 128 . . 140 30 113 . 183 Explosions 2579 | . 40 121 143 965 . 478 347 . 475 . 10 Melee 4344 | . . . . . 607 1403 1028 1214 92 . . Ramming . | . . . . . . . . . . . . Kinetic 1471 | . . 342 728 77 . . 69 33 79 . 143 Thermal 1593 | . 40 506 435 146 . . 140 30 113 . 183 Explosive 2272 | . . . 143 819 . 478 347 . 475 . 10 Electromagnetic 2514 | . 173 785 1344 212 . . . . . . . Impact . | . . . . . . . . . . . . Slashing 4344 | . . . . . 607 1403 1028 1214 92 . . Piercing . | . . . . . . . . . . . . Highest Corruption 5 | . . . . . . . 5 5 5 5 5 Average Corruption 4 | . . . . . . . 2 5 5 5 5 Corruption Purged . | . . . . . . . . . . . . Effects 71 | . . . . . . . 4 37 15 1 14 Message Errors 14 | . . . . . . . . 7 5 . 2 Matter Fused 18 | . . . . . . . . 10 4 . 4 Heat Flow Errors 6 | . . . . . . . . 4 1 . 1 Energy Discharges 6 | . . . . . . . 1 4 . . 1 Data Loss (minor) 13 | . . . . . . . 1 6 3 1 2 Misfires 1 | . . . . . . . . . . . 1 Targeting Errors 12 | . . . . . . . 2 5 2 . 3 Weapon Failures 1 | . . . . . . . . 1 . . . Overload Shots . | . . . . . . . . . . . . Overflow Damage 680 | . . 9 46 19 55 122 151 219 59 . . Projectiles 63 | . . . 43 . . . . . 20 . . Explosions 128 | . . 9 3 19 . 28 30 . 39 . . Melee 489 | . . . . . 55 94 121 219 . . . Knockbacks . | . . . . . . . . . . . . Impact . | . . . . . . . . . . . . Kinetic . | . . . . . . . . . . . . Secondary . | . . . . . . . . . . . . Self-Inflicted Damage 462 | . 40 61 . 121 . 111 . . 95 . 34 Shots 16 | . 1 2 . 5 . 4 . . 3 . 1 Rammed . | . . . . . . . . . . . . Targets Rammed . | . . . . . . . . . . . . Kicked . | . . . . . . . . . . . . Crushed . | . . . . . . . . . . . . Highest Temperature 264 | . 102 183 261 114 . 21 42 264 174 . 192 Average Temperature 48 | . 42 52 41 31 . 9 14 109 85 . 71 Received Heat Transfer 2637 | . . 381 801 105 . 96 54 164 43 27 966 Siege Activations . | . . . . . . . . . . . . Robots Corrupted 5 | . . 2 3 . . . . . . . . Combat Hostiles 5 | . . 2 3 . . . . . . . . Parts Fried 4 | . . . 4 . . . . . . . . Impact Corruptions . | . . . . . . . . . . . . Robots Melted . | . . . . . . . . . . . . Combat Hostiles . | . . . . . . . . . . . . Parts Melted 3 | . . . 1 . . . 1 . . . 1 Heat Transferred 2466 | . 50 829 703 200 . . 185 37 166 . 296 Parts Sabotaged . | . . . . . . . . . . . . Parts Stolen . | . . . . . . . . . . . . Parts Stripped . | . . . . . . . . . . . . Power Chain Reactions 6 | . 1 3 . 2 . . . . . . . Missiles Intercepted . | . . . . . . . . . . . . Alert | -11 -10 -9 -8 -8 -7 -7 -6 -6 -6 -6 -6 ------- Run | Scr Mat Mat Mat Gar Fac Gar Fac Ext Cet Arc Hub Peak Influence 828 | . 50 361 774 775 488 828 540 313 413 125 76 Initial 503 | . . 20 110 503 406 341 413 189 175 125 16 Average 299 | . 18 146 371 652 429 585 429 132 296 30 36 Maximum Alert Level 3 | . . 1 3 3 2 3 2 1 2 . . Low Security (%) 37 | 100 100 57 19 . . . . 72 8 100 100 Level 1 34 | . . 42 53 . . 19 33 27 91 . . Level 2 22 | . . . 24 62 100 49 66 . . . . Level 3 6 | . . . 2 37 . 31 . . . . . Level 4 . | . . . . . . . . . . . . Level 5 . | . . . . . . . . . . . . High Security . | . . . . . . . . . . . . Max Security . | . . . . . . . . . . . . Squads Dispatched 12 | . . 4 2 . . . 2 3 . . 1 Investigation 4 | . . 2 1 . . . . 1 . . . Extermination 1 | . . . . . . . 1 . . . . Reinforcement 6 | . . 2 1 . . . . 2 . . 1 Assault 1 | . . . . . . . 1 . . . . Garrison . | . . . . . . . . . . . . Intercept . | . . . . . . . . . . . . Construction Impeded . | . . . . . . . . . . . . Haulers Reinforced . | . . . . . . . . . . . . Stealth | -11 -10 -9 -8 -8 -7 -7 -6 -6 -6 -6 -6 --------- Run | Scr Mat Mat Mat Gar Fac Gar Fac Ext Cet Arc Hub Distress Signals 14 | . . 2 5 . 1 . . 3 1 . 2 Communications Jammed 19 | . . . . . 8 . . . 11 . . Distress Signals 19 | . . . . . 8 . . . 11 . . Times Spotted 196 | . 1 43 54 6 5 20 19 19 18 2 9 Peak Tracking Total 8 | . 1 8 6 3 3 5 6 3 8 3 5 Tactical Retreats 26 | . . 8 9 3 . 1 1 2 2 . . Traps | -11 -10 -9 -8 -8 -7 -7 -6 -6 -6 -6 -6 ------- Run | Scr Mat Mat Mat Gar Fac Gar Fac Ext Cet Arc Hub Traps Triggered 13 | . . 1 2 6 . 2 . 1 . . 1 Indirectly . | . . . . . . . . . . . . Trap Hack Attempts . | . . . . . . . . . . . . Triggered . | . . . . . . . . . . . . Disarmed . | . . . . . . . . . . . . Reprogrammed . | . . . . . . . . . . . . Reused . | . . . . . . . . . . . . Traps Extracted . | . . . . . . . . . . . . Installed . | . . . . . . . . . . . . Triggered . | . . . . . . . . . . . . Machines | -11 -10 -9 -8 -8 -7 -7 -6 -6 -6 -6 -6 ---------- Run | Scr Mat Mat Mat Gar Fac Gar Fac Ext Cet Arc Hub Machines Disabled 16 | . . 2 1 2 . 4 1 . 5 1 . Max in Single Turn 2 | . . 1 1 1 . 2 1 . 1 1 . Garrison Relay 4 | . . . . 2 . 2 . . . . . Phase Generator 1 | . . . . . . 1 . . . . . Machines Sabotaged . | . . . . . . . . . . . . Garrisons Compromised . | . . . . . . . . . . . . Overloaded Fab Kills . | . . . . . . . . . . . . Fab Network Shutdowns . | . . . . . . . . . . . . Hacking | -11 -10 -9 -8 -8 -7 -7 -6 -6 -6 -6 -6 --------- Run | Scr Mat Mat Mat Gar Fac Gar Fac Ext Cet Arc Hub Machines Accessed 40 | . 3 7 7 . 1 . 5 13 3 . 1 Terminals 36 | . 3 6 6 . . . 4 13 3 . 1 Fabricators 1 | . . . . . . . 1 . . . . Repair Stations . | . . . . . . . . . . . . Recycling Units 1 | . . 1 . . . . . . . . . Scanalyzers . | . . . . . . . . . . . . Garrison Access 2 | . . . 1 . 1 . . . . . . Total Hacks 99 | . 10 21 15 . 2 . 11 30 9 . 1 Successful 45 | . 3 15 5 . 2 . 4 13 3 . . Failed 54 | . 7 6 10 . . . 7 17 6 . 1 Catastrophic 12 | . 1 1 6 . . . 1 2 1 . . Database Lockouts . | . . . . . . . . . . . . Manual 39 | . 9 9 4 . . . 6 11 . . . Terminals 92 | . 10 19 14 . . . 9 30 9 . 1 Fabricators 2 | . . . . . . . 2 . . . . Repair Stations . | . . . . . . . . . . . . Recycling Units 2 | . . 2 . . . . . . . . . Scanalyzers . | . . . . . . . . . . . . Garrison Access 3 | . . . 1 . 2 . . . . . . Terminal Hacks 34 | . 3 11 4 . . . 2 11 3 . . Record 2 | . . . . . . . . . 2 . . Part Schematic 7 | . 3 3 . . . . 1 . . . . Prototype ID Bank 2 | . . 2 . . . . . . . . . Open Door 11 | . . . . . . . 1 9 1 . . Terminal Index 2 | . . 1 1 . . . . . . . . Unreport Threat 4 | . . 3 1 . . . . . . . . Locate Traps 1 | . . 1 . . . . . . . . . Recall Investigation 1 | . . . . . . . . 1 . . . Zone Layout 4 | . . 1 2 . . . . 1 . . . Fabricator Hacks 2 | . . . . . . . 2 . . . . Load Schematic 1 | . . . . . . . 1 . . . . Build 1 | . . . . . . . 1 . . . . Repair Station Hacks . | . . . . . . . . . . . . Recycling Unit Hacks . | . . . . . . . . . . . . Scanalyzer . | . . . . . . . . . . . . Garrison Access Hacks 3 | . . . 1 . 2 . . . . . . Unlock Access 2 | . . . 1 . 1 . . . . . . Coupler Status 1 | . . . . . 1 . . . . . . Unauthorized Hacks 6 | . . 4 . . . . . 2 . . . Terminals 4 | . . 2 . . . . . 2 . . . Botnet 3 | . . 2 . . . . . 1 . . . Operators 1 | . . . . . . . . 1 . . . Fabricators . | . . . . . . . . . . . . Repair Stations . | . . . . . . . . . . . . Recycling Units 2 | . . 2 . . . . . . . . . Reject 1 | . . 1 . . . . . . . . . Mask 1 | . . 1 . . . . . . . . . Scanalyzers . | . . . . . . . . . . . . Garrison Access . | . . . . . . . . . . . . Data Cores Recovered . | . . . . . . . . . . . . Used . | . . . . . . . . . . . . Hacking Detections 32 | . 3 7 6 . 1 . 5 7 2 . 1 Full Trace Events 3 | . . 2 . . . . . 1 . . . Feedback Events . | . . . . . . . . . . . . Feedback Blocked . | . . . . . . . . . . . . Robot Schematics Acquired . | . . . . . . . . . . . . Robots Built . | . . . . . . . . . . . . Matter . | . . . . . . . . . . . . Time . | . . . . . . . . . . . . Total Robot Build Rating . | . . . . . . . . . . . . Part Schematics Acquired 7 | . 3 3 . . . . 1 . . . . Parts Built 1 | . . . . . . . 1 . . . . Matter 168 | . . . . . . . 168 . . . . Time 84 | . . . . . . . 84 . . . . Total Part Build Rating 4 | . . . . . . . 4 . . . . Parts Repaired . | . . . . . . . . . . . . Time . | . . . . . . . . . . . . Parts Recycled . | . . . . . . . . . . . . Recycled Matter . | . . . . . . . . . . . . Retrieved Matter . | . . . . . . . . . . . . Retrieved Components . | . . . . . . . . . . . . Parts Scanalyzed . | . . . . . . . . . . . . Part Schematics Acquired . | . . . . . . . . . . . . Parts Damaged . | . . . . . . . . . . . . Bothacking | -11 -10 -9 -8 -8 -7 -7 -6 -6 -6 -6 -6 ------------ Run | Scr Mat Mat Mat Gar Fac Gar Fac Ext Cet Arc Hub Used RIF Installer 2 | . . . . 1 . 1 . . . . . Zone Cloak 1 | . . . . . . 1 . . . . . Robots Hacked 30 | . . . . . 2 8 11 6 1 1 1 Non-combat 12 | . . . . . . . 4 6 . 1 1 Combat 18 | . . . . . 2 8 7 . 1 . . Robot Hacks Applied 40 | . . . . . 2 8 15 10 1 3 1 generate_echo 1 | . . . . . . . . 1 . . . deconstruct_machine 1 | . . . . . . . 1 . . . . ignore_repairs 2 | . . . . . . . . 2 . . . map_walls 3 | . . . . . . . 1 2 . . . purge_threat 3 | . . . . . . . . 2 . 1 . locate_traps 1 | . . . . . . . . . . 1 . disarm_traps 1 | . . . . . . . . 1 . . . block_reporting 1 | . . . . . . . . . . 1 . clear_recycling 1 | . . . . . . . . 1 . . . map_route 2 | . . . . . . . 1 . . . 1 mark_security 1 | . . . . . . . . 1 . . . scatter_targeting 1 | . . . . . . . 1 . . . . amplify_resonance 1 | . . . . . . . 1 . . . . reboot_system 12 | . . . . . 2 4 6 . . . . overwrite_iff 8 | . . . . . . 4 3 . 1 . . formatsys_low 1 | . . . . . . . 1 . . . . Relay Couplers Released 16 | . . . . 7 . 9 . . . . . Machine Destruction 16 | . . . . 7 . 9 . . . . . Attached 13 | . . . . . 2 4 3 1 1 1 1 Robots Rewired 18 | . . . . . . 4 . 14 . . . Allies Hacked . | . . . . . . . . . . . . Hacks Repelled . | . . . . . . . . . . . . Allies | -11 -10 -9 -8 -8 -7 -7 -6 -6 -6 -6 -6 -------- Run | Scr Mat Mat Mat Gar Fac Gar Fac Ext Cet Arc Hub Total Allies 39 | . . . . . . 8 4 26 1 . . Largest Group 10 | . . . . . . 4 2 10 8 . . Highest-Rated Group 382 | . . . . . . 72 40 382 351 . . Highest-Rated Ally 156 | . . . . . . 32 20 156 156 . . Total Orders . | . . . . . . . . . . . . Ally Attacks 205 | . . . . . . 10 6 127 62 . . Total Damage 4878 | . . . . . . 296 84 2701 1797 . . Kills 29 | . . . . . . 1 . 17 11 . . Allies Corrupted . | . . . . . . . . . . . . Allies Melted . | . . . . . . . . . . . . Intel | -11 -10 -9 -8 -8 -7 -7 -6 -6 -6 -6 -6 ------- Run | Scr Mat Mat Mat Gar Fac Gar Fac Ext Cet Arc Hub Robot Analysis Total . | . . . . . . . . . . . . Derelict Logs Recovered . | . . . . . . . . . . . . Drone Launches . | . . . . . . . . . . . . Drone Recoveries . | . . . . . . . . . . . . Exploration | -11 -10 -9 -8 -8 -7 -7 -6 -6 -6 -6 -6 ------------- Run | Scr Mat Mat Mat Gar Fac Gar Fac Ext Cet Arc Hub Turns Passed 8033 | 3 293 1403 1960 653 234 602 600 1405 434 114 332 Spaces Moved 3433 | 1 221 557 826 230 116 268 198 695 182 36 103 Core 3 | . . . . . . . . . . . 3 Treads 942 | . . . . 17 . 14 10 695 174 21 11 Legs . | . . . . . . . . . . . . Wheels 2488 | 1 221 557 826 213 116 254 188 . 8 15 89 Hover . | . . . . . . . . . . . . Flight . | . . . . . . . . . . . . Fastest Speed 100 | 100 100 160 170 190 150 140 150 170 180 180 180 Average Speed 174 | 100 112 166 183 225 150 155 152 173 192 184 252 Slowest Speed 2500 | 100 140 190 190 310 150 260 190 190 260 190 2500 Overloaded Moves . | . . . . . . . . . . . . Propulsion Burnouts . | . . . . . . . . . . . . Robots Hopped . | . . . . . . . . . . . . Cave-ins Triggered . | . . . . . . . . . . . . Exploration Rate (%) 40 | 2 36 59 75 41 4 55 7 60 78 58 16 Regions Visited 11 Branch Regions 4 Pre-discovered Areas . | . . . . . . . . . . . . Known Exits Taken 2 | . . . 1 . 1 . . . . . . Unknown Exits Taken 7 | 1 1 1 . . . . 1 1 1 1 . Scrap Searched . | . . . . . . . . . . . . Spaces Dug 14 | . . 1 10 . . 1 . . . 1 1 Terrain Destroyed 269 | . 4 11 29 7 . 95 . 85 27 1 10 Melee 5 | . . 1 1 . . 1 . . . 1 1 Projectile 6 | . . 2 3 . . . . 1 . . . AOE 258 | . 4 8 25 7 . 94 . 84 27 . 9 Terrain Rammed . | . . . . . . . . . . . . Walls Destroyed . | . . . . . . . . . . . . Machines Disabled . | . . . . . . . . . . . . Actions | -11 -10 -9 -8 -8 -7 -7 -6 -6 -6 -6 -6 --------- Run | Scr Mat Mat Mat Gar Fac Gar Fac Ext Cet Arc Hub Total 4883 | 4 257 897 1100 337 162 398 443 825 236 67 157 Wait 649 | . . 220 80 36 11 47 175 33 11 15 21 Move 3424 | . 220 556 826 229 116 267 197 694 181 35 103 Hop . | . . . . . . . . . . . . Pick Up 126 | . 16 26 31 10 11 11 4 7 5 . 5 Fast Attach 4 | . 1 . . . . . 1 2 . . . Attach 54 | 2 . 8 15 5 3 1 7 1 4 . 8 Detach . | . . . . . . . . . . . . Swap 100 | . 5 8 19 5 8 10 11 10 13 4 7 Drop 61 | 2 9 8 16 4 4 7 3 3 5 . . Fire 275 | . 6 70 112 18 . 7 30 9 11 . 12 Melee 152 | . . 1 1 . 9 44 15 62 6 13 1 Ram . | . . . . . . . . . . . . Kick . | . . . . . . . . . . . . Crush . | . . . . . . . . . . . . Escape Stasis 38 | . . . . 30 . 4 . 4 . . . Rewire . | . . . . . . . . . . . . Trap . | . . . . . . . . . . . . Miscellaneous . | . . . . . . . . . . . . Route ------- -11/Scrapyard -10/Materials -9/Materials (discovered 2 exits: *Mat / [*Min]) -8/Materials (discovered 4 exits: *Fac x3 / Gar) -8/Garrison -7/Factory -7/Garrison -6/Factory -6/Extension (discovered 2 exits: [*Fac] / *Cet) -6/Cetus -6/Archives -6/Hub_04(d) (discovered 2 exits: [*Fac x2]) History --------- Turn | Location | Event 4 | -11/Scrapyard | Discovered new exit (range 0) 4 | -11/Scrapyard | Entered Materials 292 | -10/Materials | Discovered new exit (range 4) 297 | -10/Materials | Entered another Materials area 297 | -9/Materials | Evolved 2 slots: Utility x2 524 | -9/Materials | Build established: Hauler-Mutant 1006 | -9/Materials | Discovered new exit (range 13) 1622 | -9/Materials | Discovered new exit (range 11) 1700 | -9/Materials | Entered another Materials area 1700 | -8/Materials | Evolved 2 slots: Utility x2 2582 | -8/Materials | Core integrity fell below 50% 2746 | -8/Materials | Discovered new exit (range 12) 3183 | -8/Materials | Discovered new exit (range 15) 3326 | -8/Materials | Discovered new exit (range 14) 3660 | -8/Materials | Identified exit to Garrison 3660 | -8/Materials | Entered Garrison 3670 | -8/Garrison | Installed Relay Interface Framework 3732 | -8/Garrison | Triggered checkpoint 3785 | -8/Garrison | Garrison Relay disabled 3906 | -8/Garrison | Triggered checkpoint 4060 | -8/Garrison | Triggered checkpoint 4199 | -8/Garrison | Triggered checkpoint 4226 | -8/Garrison | Garrison Relay disabled 4280 | -8/Garrison | Discovered new exit (range 14) 4313 | -8/Garrison | Entered Factory 4313 | -7/Factory | Evolved 2 slots: Propulsion x1, Utility x1 4542 | -7/Factory | Build established: Bothacker-Mutant 4547 | -7/Factory | Identified exit to Garrison 4547 | -7/Factory | Entered Garrison 4555 | -7/Garrison | Expanded RIF knowledge: Zone Cloak 4612 | -7/Garrison | Triggered checkpoint 4663 | -7/Garrison | Garrison Relay disabled 4768 | -7/Garrison | Triggered checkpoint 4808 | -7/Garrison | Triggered checkpoint 4932 | -7/Garrison | Triggered checkpoint 4958 | -7/Garrison | Garrison Relay disabled 5101 | -7/Garrison | Phase Generator disabled 5113 | -7/Garrison | Discovered new exit (range 11) 5149 | -7/Garrison | Entered Factory 5149 | -6/Factory | Evolved 2 slots: Utility x2 5269 | -6/Factory | Fabricated Remote Datajack (x1) 5499 | -6/Factory | First assault squad dispatched 5736 | -6/Factory | Discovered new exit (range 7) 5749 | -6/Factory | Entered Extension 5813 | -6/Extension | Rescued a captive Derelict 5814 | -6/Extension | Rescued a captive Derelict 6130 | -6/Extension | Rescued a captive Derelict 6159 | -6/Extension | Rescued a captive Derelict 6160 | -6/Extension | Rescued a captive Derelict 6274 | -6/Extension | Rescued a captive Derelict 6459 | -6/Extension | Rescued a captive Derelict 6617 | -6/Extension | Spotted B-75 Beast 6824 | -6/Extension | Rescued A7 6934 | -6/Extension | Rescued a captive Derelict 6935 | -6/Extension | Rescued a captive Derelict 6956 | -6/Extension | Rescued a captive Derelict 7058 | -6/Extension | Rescued a captive Derelict 7067 | -6/Extension | Rescued a captive Derelict 7137 | -6/Extension | Discovered new exit (range 10) 7139 | -6/Extension | Discovered new exit (range 6) 7154 | -6/Extension | Entered Cetus 7154 | -6/Cetus | Accompanied by 8 allies (A7) 7159 | -6/Cetus | Acquired a Cetus Manufacturing Module code from A7 7182 | -6/Cetus | Spotted Cetus Guard 7182 | -6/Cetus | Spotted Cetus Guard 7185 | -6/Cetus | Allies destroyed Cetus Guard 7186 | -6/Cetus | Spotted Cetus Guard 7190 | -6/Cetus | Spotted Cetus Guard 7192 | -6/Cetus | Allies destroyed Cetus Guard 7202 | -6/Cetus | Allies destroyed Cetus Guard 7205 | -6/Cetus | Allies destroyed Cetus Guard 7332 | -6/Cetus | Cetus Manufacturing Module disabled 7372 | -6/Cetus | Escorted A7 to Cetus Mainframe 7520 | -6/Cetus | Discovered new exit (range 15) 7588 | -6/Cetus | Entered Archives 7590 | -6/Archives | Lost 3 parts (2n1u) 7680 | -6/Archives | Discovered new exit (range 13) 7702 | -6/Archives | Entered Hub_04(d) 7755 | -6/Hub_04(d) | Discovered new exit (range 46) 7935 | -6/Hub_04(d) | Discovered new exit (range 8) 7986 | -6/Hub_04(d) | Core integrity fell below 50% 8022 | -6/Hub_04(d) | Core integrity fell below 20% 8034 | -6/Hub_04(d) | Destroyed by Y-54 Guardian with Flak Gun Last Messages --------------- Imp. Grenade Launcher destroyed. Hvy. Assault Rifle destroyed. Relay Coupler [NC] destroyed. Med. Treads destroyed. Identified Centrium Medium Armor Plating. Med. Treads destroyed. Phasing Sabre destroyed. K-01 Serf exits level. Relay Coupler [Hunter] destroyed. QV3FKAVYZTF6%CH2MET JJ 8IZS%OW4KHP/ Rnf. Deuterium Engine destroyed. Hcp. Storage Unit destroyed. U-05 Engineer lays Concrete. Centrium Medium Armor Plating destroyed. Relay Coupler [Brawler] destroyed. U-05 Engineer lays Concrete. U-05 Engineer builds a Wall. System corrupted: Matter fused (-10). U-05 Engineer exits level. U-05 Engineer lays Concrete. Map ----- +----------------------------------------------------+ | | | | | | | | | | | | | | | | | | | | | | | | | | | | | | | | | ????????????????????????##???????????????????????? | | ???????????????????????? ???????????????????????? | | ???????????????????????? ???????????????????????? | | ????????????????????????""???????????????????????? | | ???????????????????????? ???????????????????????? | | ??????????????????????###+###??################??? | | ??????????????????????# ####### # #??? | | ??????????????????????#] o u # #??? | | ??????????????????????# < g u # #??? | | ??????????????????????# @ g kg + """" ?????? | | ??????????????????????# ### # # """" ?????? | | ?????????????????????#####Y##### """" ??????? | | ?????????????????????# # """" ??????? | | ???????????########### """ """ # ?????? | | ???????????# == + + ############## | | ???????????# == # """ !!! # #????# ] | | ???????????# == # !!! # ###### | | ???????????# " " # """ !!! # # | | ???????????# " " # # # """? | | ??########## " " ############ !!! + ""?? | | #?#* !![ = # ! ############ !!! # ""?? | | #?# !![ #[ = # ^^ # !! # """? | | #?# ![[ #####+###### " " # # | | #?# ! # # "" " " #! ! ###+##### | | #?# + # "" " "=+ % #?# #???? | | #?# """ # # "T !#= ########+#???? | | #?# ## #### "" # # #???? | | #?# """ ## #??# "" # # #???? | | #?# ## #??# # + #???? | | ############# ######+####### #""??????#???? | | + + # #????????????? | | ############# ####### # #????????????? | | ???????????###+####???# # #????????????? | | ???????????# #???# + #????????????? | +----------------------------------------------------+ Best States ------------- Heat Dissipation 53 Energy Generation 25 Energy Capacity 350 Matter Stores 300 Matter Capacity 300 Sight Range 16 Robot Scan Range 16 Terrain Scan Range 24 Terrain Scan Density 60 Jamming Range 12 Armor Coverage 225 Propulsion Shielding 66 Evasion (%) 40 Melee Accuracy 6 Recoil Reduction 3 Offensive Hacking 20 Relay Coupler Types 86 Relay Coupler Value 4 Item Schematics ----------------- Datajack | -10/Materials | Hacked Hcp. Storage Unit | -10/Materials | Hacked Utility Shielding | -10/Materials | Hacked Cooling System | -9/Materials | Hacked Grenade Launcher | -9/Materials | Hacked Imp. Sensor Array | -9/Materials | Hacked Remote Datajack | -6/Factory | Hacked Robot Schematics ------------------ None Fabricated ------------ Remote Datajack | x1 | -6/Factory Alien Tech Used ----------------- None Achievements -------------- Tank Challenges ------------ None Game ------ Seed ImpulseFrostBay Manual? 0 Play Time 01:08:15 Cumulative 172.7 hours Start 2020.12.13 @ 21:31:51 End 2020.12.13 @ 23:41:23 Sessions 1 Manual Loads 0 Difficulty Rogue Special Mode None Game No. 205 Rogue 205 Adventurer 0 Explorer 0 Win Type - Total 2 Types 2/0/0/0/0/0/0/0/0 Lore% 57 Gallery% 75 Achievement% 56 Wizard Run 0 Options --------- ASCII 0 Keyboard 0 Movement Mouse Keybinds 1 Fullscreen 2 Font 24/Smallcaps Map View 76x50 Tactical HUD 1 Map Filters NONE Filters NONE Steam 1 RUN: bca27321-f5ec-4cc1-84f7-3e6d525a96c0